bitfinex/quotes_SOLUSD_20250915
["timestamp","ask_amount","ask_price","bid_price","bid_amount"]
[1757923838330,0.67,237.27,237.19,14.75610269]
[1757923838634,13.59559401,237.29,237.19,14.75610269]
[1757923838850,13.59559401,237.29,237.19,35.8362494]
[1757923839262,13.59559401,237.27,237.19,40.75610269]
[1757923839563,0.72,237.26,237.12,0.7]
[1757923839855,14.31559401,237.25,237.16,4.21643361]
[1757923840067,13.59559401,237.23,237.16,4.21643361]
[1757923840364,13.59559401,237.23,237.13,14.75983636]
[1757923840534,0.72,237.27,237.14,0.7]
[1757923840861,13.59559401,237.26,237.16,26.0]
[1757923841028,13.59559401,237.26,237.17,0.7]
[1757923841233,13.59559401,237.28,237.17,0.7]
[1757923842272,13.59559401,237.27,237.17,0.7]
[1757923842558,13.59559401,237.27,237.18,14.75672485]
[1757923843343,13.59559401,237.27,237.18,35.83776035]
[1757923844344,0.72,237.3,237.18,35.83776035]
[1757923844546,13.59559401,237.29,237.19,0.7]
[1757923844947,0.03,237.31,237.21,26.0]
[1757923845152,0.03,237.31,237.22,0.7]
[1757923845354,0.03,237.31,237.23,42.86]
[1757923845927,0.03,237.31,237.22,0.7]
[1757923846131,13.59559401,237.29,237.21,42.84]
[1757923846361,13.59559401,237.27,237.16,14.75796929]
[1757923846531,0.72,237.26,237.16,14.75796929]
[1757923847241,13.59559401,237.25,237.16,14.75796929]
[1757923847752,13.59559401,237.25,237.16,35.84078258]
[1757923848171,13.59559401,237.28,237.17,0.7]
[1757923848454,13.59559401,237.28,237.2,14.7554806]
[1757923848864,0.03,237.31,237.2,14.7554806]
[1757923848865,13.59559401,237.26,237.2,14.7554806]
[1757923849035,13.59559401,237.24,237.2,4.2158516]
[1757923849241,0.72,237.23,237.11,42.76]
[1757923849440,0.72,237.23,237.11,57.52108134]
[1757923849643,13.59559401,237.22,237.12,0.7]
[1757923849849,13.59559401,237.22,237.14,26.0]
[1757923850045,13.59559401,237.26,237.15,0.7]
[1757923850563,13.59559401,237.26,237.16,14.75796929]
[1757923850856,13.59559401,237.26,237.19,26.0]
[1757923851064,0.72,237.3,237.19,26.7]
[1757923851360,13.59559401,237.29,237.19,26.7]
[1757923851873,13.59559401,237.27,237.19,68.72]
[1757923852171,13.59559401,237.27,237.19,26.0]
[1757923852662,0.03,237.31,237.2,79.23473861]
[1757923852862,0.03,237.31,237.23,26.0]
[1757923853249,0.03,237.31,237.24,0.7]
[1757923854652,0.03,237.31,237.28,26.0]
[1757923854860,0.03,237.31,237.28,26.7]
[1757923855371,0.03,237.31,237.28,69.36]
[1757923855541,0.03,237.31,237.28,26.7]
[1757923855938,0.03,237.31,237.25,35.82718649]
[1757923856143,13.59559401,237.3,237.25,14.7523709]
[1757923856365,14.31559401,237.3,237.25,14.7523709]
[1757923856569,0.03,237.31,237.25,14.7523709]
[1757923857158,14.31559401,237.3,237.25,14.7523709]
[1757923857346,0.72,237.29,237.25,14.7523709]
[1757923857551,0.72,237.28,237.25,4.21496311]
[1757923857867,13.59559401,237.26,237.25,4.21496311]
[1757923858171,0.72,237.26,237.25,4.21496311]
[1757923858669,0.72,237.26,237.17,43.28]
[1757923858670,0.72,237.26,237.18,35.83776035]
[1757923859256,0.72,237.25,237.18,14.75672485]
[1757923859458,13.59559401,237.24,237.18,14.75672485]
[1757923860275,13.59559401,237.22,237.14,14.75921396]
[1757923860594,13.59559401,237.22,237.14,15.45921396]
[1757923860768,13.59559401,237.24,237.14,15.45921396]
[1757923861082,13.59559401,237.22,237.14,15.45921396]
[1757923861450,13.59559401,237.22,237.14,36.54380534]
[1757923861647,0.72,237.26,237.14,36.54380534]
[1757923861851,0.72,237.26,237.14,79.04380534]
[1757923862051,26.0,237.29,237.17,26.0]
[1757923862372,13.59559401,237.29,237.19,14.75610269]
[1757923862579,13.59559401,237.29,237.19,35.8362494]
[1757923863153,0.72,237.28,237.19,78.3162494]
[1757923863358,13.62559401,237.31,237.2,0.7]
[1757923863669,13.62559401,237.31,237.22,26.0]
[1757923864367,13.62559401,237.31,237.23,35.83020695]
[1757923865660,0.03,237.31,237.24,0.7]
[1757923865857,0.03,237.31,237.23,35.83020695]
[1757923866082,13.62559401,237.31,237.23,78.25020695]
[1757923866291,13.59559401,237.29,237.23,14.75361462]
[1757923866587,13.59559401,237.29,237.23,10.53829616]
[1757923866788,0.03,237.31,237.23,10.53829616]
[1757923867598,0.03,237.31,237.24,0.7]
[1757923868385,13.59559401,237.3,237.24,42.36]
[1757923868580,13.59559401,237.28,237.23,4.21531846]
[1757923868763,13.59559401,237.26,237.23,4.21531846]
[1757923868962,13.59559401,237.24,237.23,4.21531846]
[1757923869166,0.66,237.24,237.17,10.54081066]
[1757923869791,0.66,237.29,237.18,0.68]
[1757923869965,13.59559401,237.28,237.2,26.0]
[1757923870668,13.59559401,237.28,237.21,14.75485855]
[1757923871608,13.59559401,237.26,237.21,14.75485855]
[1757923871771,13.59559401,237.24,237.16,4.21656265]
[1757923871986,13.59559401,237.22,237.16,4.21656265]
[1757923872489,13.59559401,237.22,237.16,14.75796929]
[1757923872693,13.59559401,237.26,237.16,14.75796929]
[1757923872898,13.59559401,237.26,237.17,0.68]
[1757923873505,13.62559401,237.31,237.19,26.0]
[1757923873694,13.62559401,237.31,237.2,42.94]
[1757923874084,13.59559401,237.29,237.2,26.0]
[1757923874282,13.59559401,237.27,237.2,26.0]
[1757923874588,0.03,237.31,237.2,26.68]
[1757923874589,0.69,237.31,237.2,26.68]
[1757923874787,13.59559401,237.3,237.21,35.83322792]
[1757923875084,0.66,237.29,237.21,14.75485855]
[1757923875284,13.59559401,237.27,237.21,4.21567387]
[1757923875493,13.59559401,237.25,237.13,4.2170961]
[1757923875691,13.59559401,237.23,237.13,4.2170961]
[1757923875886,0.66,237.22,237.13,4.2170961]
[1757923876112,13.59559401,237.21,237.13,14.75983636]
[1757923876410,13.59559401,237.24,237.14,0.68]
[1757923876902,13.59559401,237.24,237.17,14.75734704]
[1757923877088,13.59559401,237.24,237.17,35.83927139]
[1757923877480,13.59559401,237.24,237.17,14.75734704]
[1757923877903,13.59559401,237.28,237.17,15.43734704]
[1757923878126,13.59559401,237.28,237.18,0.68]
[1757923878304,13.59559401,237.28,237.2,26.0]
[1757923878699,0.03,237.31,237.21,0.68]
[1757923878908,0.03,237.31,237.22,14.75423656]
[1757923879204,0.03,237.31,237.22,56.91423656]
[1757923879506,0.03,237.31,237.25,26.0]
[1757923880086,0.03,237.33,237.26,0.68]
[1757923880087,1e-08,237.33,237.26,0.68]
[1757923880287,0.66000001,237.33,237.25,26.0]
[1757923880496,0.66,237.32,237.22,35.83171737]
[1757923880700,13.59559401,237.3,237.22,14.75423656]
[1757923880882,13.59559401,237.28,237.22,10.5387404]
[1757923881284,0.66,237.28,237.22,10.5387404]
[1757923881505,1e-08,237.33,237.22,10.5387404]
[1757923881506,13.59559401,237.29,237.22,10.5387404]
[1757923882093,1e-08,237.33,237.22,10.5387404]
[1757923882306,13.59559402,237.33,237.23,0.68]
[1757923882603,13.59559402,237.33,237.25,26.0]
[1757923882808,13.59559402,237.33,237.26,35.82567645]
[1757923883129,1e-08,237.33,237.26,77.88567645]
[1757923883810,1e-08,237.33,237.29,26.0]
[1757923884113,13.59559402,237.33,237.26,14.75174912]
[1757923884809,0.03,237.31,237.26,14.75174912]
[1757923885220,0.03,237.31,237.27,0.68]
[1757923885390,0.03,237.36,237.29,26.0]
[1757923885595,0.03,237.36,237.29,26.68]
[1757923886816,132.5,237.45,237.29,26.68]
[1757923886817,0.66,237.47,237.33,26.0]
[1757923887007,0.66,237.47,237.34,0.68]
[1757923887316,13.59559401,237.46,237.35,56.72615546]
[1757923887512,13.59559401,237.44,237.35,14.74615546]
[1757923887713,13.59559401,237.42,237.35,14.74615546]
[1757923887898,13.59559401,237.42,237.33,46.17339939]
[1757923888100,13.59559401,237.46,237.36,26.0]
[1757923888508,13.59559401,237.46,237.36,26.68]
[1757923888809,0.1,237.48,237.37,26.68]
[1757923889000,1e-08,237.48,237.37,26.68]
[1757923889201,1e-08,237.48,237.41,26.0]
[1757923889408,1e-08,237.48,237.45,26.0]
[1757923889809,0.1,237.55,237.46,0.68]
[1757923890316,0.66,237.64,237.46,0.68]
[1757923890817,0.66,237.71,237.54,26.0]
[1757923891122,0.66,237.7,237.56,14.73312005]
[1757923891426,0.66,237.69,237.57,0.68]
[1757923891613,13.59559401,237.68,237.57,0.68]
[1757923891916,13.59559401,237.66,237.56,4.20946287]
[1757923892096,13.59559401,237.66,237.57,0.68]
[1757923892296,13.59559401,237.66,237.55,26.0]
[1757923892297,0.66,237.65,237.55,26.0]
[1757923892604,13.59559401,237.64,237.55,30.2095886]
[1757923893148,28.93566475,237.76,237.63,26.0]
[1757923893436,0.66,237.75,237.64,41.84]
[1757923893723,0.66,237.74,237.64,41.84]
[1757923893911,13.59559401,237.79,237.62,0.68]
[1757923894097,13.59559401,237.71,237.6,4.2087542]
[1757923894289,13.59559401,237.69,237.6,4.2087542]
[1757923894700,13.59559401,237.69,237.6,14.73063972]
[1757923895315,13.59559401,237.69,237.6,15.41063972]
[1757923895523,13.59559401,237.67,237.58,4.2090769]
[1757923896128,13.59559401,237.65,237.55,41.78]
[1757923897135,13.59559401,237.63,237.51,4.21034903]
[1757923897313,13.59559401,237.61,237.49,4.2107036]
[1757923897517,13.59559401,237.59,237.49,4.2107036]
[1757923897831,13.59559401,237.57,237.49,15.41746262]
[1757923898027,13.59559401,237.59,237.49,15.41746262]
[1757923898734,13.59559401,237.62,237.49,15.41746262]
[1757923899105,13.59559401,237.62,237.5,41.7]
[1757923899426,13.59559401,237.62,237.51,14.73622162]
[1757923899829,13.59559401,237.62,237.51,15.45622162]
[1757923900037,13.59559401,237.62,237.53,26.0]
[1757923900345,13.59559401,237.66,237.54,0.72]
[1757923901031,0.71,237.65,237.54,26.72]
[1757923901234,0.71,237.65,237.54,68.4]
[1757923901536,0.71,237.65,237.55,14.73374025]
[1757923901730,18.51281341,237.69,237.56,0.72]
[1757923903218,29.03071487,237.69,237.56,26.0]
[1757923903534,13.59559401,237.67,237.57,4.20928568]
[1757923903709,0.71,237.66,237.57,4.20928568]
[1757923904119,13.59559401,237.68,237.57,4.20928568]
[1757923904319,14.30559401,237.68,237.57,4.20928568]
[1757923904539,17.80328567,237.66,237.57,4.20928568]
[1757923904719,13.59559401,237.64,237.57,4.20928568]
[1757923905333,13.59559401,237.64,237.57,14.73249989]
[1757923905550,26.71,237.7,237.57,15.45249989]
[1757923905747,13.59559401,237.69,237.58,0.72]
[1757923906113,0.71,237.68,237.57,14.73249989]
[1757923906321,0.71,237.68,237.58,0.72]
[1757923906642,0.71,237.68,237.59,14.73125973]
[1757923907142,14.30559401,237.71,237.62,26.0]
[1757923907525,14.33559401,237.71,237.62,26.0]
[1757923907731,14.33559401,237.71,237.59,56.27125973]
[1757923908039,18.5424404,237.71,237.59,4.20893135]
[1757923908244,13.59559401,237.69,237.59,4.20893135]
[1757923909330,0.03,237.71,237.59,14.73125973]
[1757923909531,13.59559401,237.67,237.59,14.73125973]
[1757923910239,13.59559401,237.65,237.57,4.20913014]
[1757923910442,0.71,237.64,237.57,4.20913014]
[1757923910647,0.71,237.64,237.56,10.52364111]
[1757923911534,13.59559401,237.68,237.59,26.0]
[1757923911939,0.71,237.69,237.59,26.72]
[1757923912741,0.71,237.69,237.6,14.73063972]
[1757923912940,0.71,237.69,237.6,4.2087542]
[1757923913333,0.71,237.69,237.6,14.73063972]
[1757923915236,0.71,237.69,237.6,4.2087542]
[1757923915688,0.71,237.69,237.44,20.0]
[1757923915689,14.30559401,237.68,237.5,0.06]
[1757923915832,14.30559401,237.68,237.52,0.72]
[1757923916257,14.30559401,237.68,237.53,10.52482732]
[1757923916549,13.59559401,237.66,237.54,26.72]
[1757923916750,13.59559401,237.67,237.54,26.72]
[1757923916979,0.71,237.66,237.54,26.72]
[1757923917158,0.71,237.66,237.55,14.73374025]
[1757923917354,13.59559401,237.64,237.55,0.72]
[1757923917681,13.59559401,237.64,237.55,26.72]
[1757923917891,0.71,237.65,237.55,26.72]
[1757923918472,13.59559401,237.67,237.56,0.71]
[1757923918673,13.59559401,237.68,237.56,0.71]
[1757923918870,0.03,237.71,237.56,0.71]
[1757923919055,0.03,237.71,237.57,26.0]
[1757923919369,0.03,237.71,237.61,26.0]
[1757923919780,0.03,237.71,237.62,0.71]
[1757923920159,0.03,237.71,237.63,41.3]
[1757923920356,0.03,237.71,237.66,26.0]
[1757923920854,0.03,237.71,237.67,0.71]
[1757923921054,0.03,237.71,237.64,0.71]
[1757923921284,0.03,237.71,237.65,14.72754049]
[1757923922294,0.03,237.71,237.65,4.20786871]
[1757923922888,0.03,237.71,237.65,30.20786871]
[1757923923651,0.03,237.71,237.65,15.43754049]
[1757923923896,0.03,237.71,237.65,40.72754049]
[1757923924070,0.03,237.71,237.65,26.0]
[1757923924381,0.03,237.71,237.65,30.20778439]
[1757923924767,0.03,237.71,237.65,40.72745617]
[1757923924967,0.03,237.71,237.66,0.71]
[1757923925366,0.03,237.74,237.68,26.0]
[1757923925587,0.03,237.74,237.72,26.0]
[1757923925762,0.03,237.74,237.73,4.20645269]
[1757923926088,0.03,237.74,237.73,4.91645269]
[1757923926285,0.03,237.74,237.73,30.91645269]
[1757923927179,0.03,237.74,237.71,4.20665463]
[1757923927377,0.03,237.74,237.72,0.71]
[1757923927894,0.03,237.74,237.73,4.91645269]
[1757923928213,1e-08,237.76,237.75,26.0]
[1757923928564,1e-08,237.76,237.75,26.71]
[1757923929775,1e-08,237.76,237.75,30.91609884]
[1757923930087,1e-08,237.76,237.75,72.01609884]
[1757923930669,1e-08,237.76,237.75,30.91609884]
[1757923930980,1e-08,237.76,237.75,71.99609884]
[1757923931181,1e-08,237.76,237.75,85.59169285]
[1757923932694,1e-08,237.86,237.79,26.0]
[1757923932898,1e-08,237.86,237.83,26.0]
[1757923933400,1e-08,237.86,237.84,0.67]
[1757923933568,1e-08,237.86,237.85,41.04]
[1757923933771,1e-08,237.86,237.83,26.0]
[1757923934071,1e-08,237.86,237.84,41.02]
[1757923934277,1e-08,237.86,237.85,26.0]
[1757923934680,1e-08,237.86,237.85,67.02]
[1757923935393,1e-08,237.86,237.85,67.0]
[1757923935591,1e-08,237.86,237.85,38.72294487]
[1757923935898,1e-08,237.86,237.85,79.72294487]
[1757923936070,1e-08,237.86,237.85,83.92727533]
[1757923936273,0.71000001,237.86,237.85,12.72294487]
[1757923936498,0.71000001,237.86,237.79,10.51346618]
[1757923936809,13.59559401,237.85,237.8,4.20521446]
[1757923936981,0.71,237.84,237.78,4.2054456]
[1757923937295,0.71,237.84,237.79,40.96]
[1757923937667,1e-08,237.86,237.79,40.96]
[1757923937871,1e-08,237.86,237.8,66.96]
[1757923938071,1e-08,237.86,237.81,14.71763171]
[1757923938492,1e-08,237.86,237.81,4.20503763]
[1757923938666,1e-08,237.86,237.82,40.94]
[1757923939281,1e-08,237.86,237.82,41.61]
[1757923939497,1e-08,237.86,237.81,14.71763171]
[1757923939689,13.59559401,237.84,237.81,4.20503763]
[1757923940002,13.59559401,237.84,237.82,40.92]
[1757923940307,1e-08,237.86,237.83,4.20468401]
[1757923940597,0.71,237.85,237.82,40.92]
[1757923940799,0.71,237.84,237.82,40.92]
[1757923940999,1e-08,237.86,237.83,40.9]
[1757923941201,1e-08,237.86,237.84,40.9]
[1757923941585,0.71000001,237.86,237.84,40.9]
[1757923941988,1e-08,237.86,237.82,4.20481168]
[1757923942199,13.59559401,237.84,237.82,40.88]
[1757923942380,13.59559401,237.82,237.69,21.70494599]
[1757923942696,13.59559401,237.82,237.7,40.86]
[1757923942697,0.71,237.81,237.7,40.86]
[1757923943077,0.71,237.81,237.71,10.51696278]
[1757923943300,0.71,237.81,237.74,26.0]
[1757923943504,0.71,237.84,237.75,40.86]
[1757923943815,13.59559401,237.83,237.75,40.86]
[1757923944405,13.59559401,237.83,237.76,14.72072677]
[1757923944696,13.59559401,237.83,237.76,55.56072677]
[1757923944903,1e-08,237.86,237.79,26.0]
[1757923945405,1e-08,237.86,237.79,26.67]
[1757923945722,1e-08,237.86,237.8,0.67]
[1757923946087,1e-08,237.86,237.84,26.0]
[1757923946281,1e-08,237.86,237.85,30.20433046]
[1757923946587,1e-08,237.86,237.85,30.87433046]
[1757923946791,1e-08,237.86,237.85,4.20433046]
[1757923947225,1e-08,237.86,237.83,4.20452839]
[1757923947611,1e-08,237.86,237.83,44.98452839]
[1757923948410,1e-08,237.86,237.85,26.0]
[1757923949305,1e-08,237.86,237.85,66.76]
[1757923949500,1e-08,237.86,237.85,26.0]
[1757923949706,13.59559401,237.85,237.83,4.20452839]
[1757923950409,13.59559401,237.85,237.8,14.71796437]
[1757923950610,1e-08,237.86,237.81,40.72]
[1757923950926,1e-08,237.86,237.84,26.0]
[1757923951101,1e-08,237.86,237.85,40.72]
[1757923952536,14.30559402,237.86,237.85,44.88433046]
[1757923953106,14.30559402,237.86,237.85,4.20433046]
[1757923953300,1e-08,237.86,237.85,4.20433046]
[1757923954325,1e-08,237.86,237.85,44.86433046]
[1757923955116,1e-08,237.86,237.85,4.20433046]
[1757923955834,1e-08,237.86,237.85,44.84433046]
[1757923957734,1e-08,237.86,237.79,21.02613472]
[1757923957735,13.59559401,237.85,237.73,0.67]
[1757923957918,13.59559401,237.85,237.74,40.6]
[1757923958256,1e-08,237.86,237.77,26.0]
[1757923958448,1e-08,237.86,237.81,26.0]
[1757923958614,1e-08,237.86,237.85,26.0]
[1757923959638,1e-08,237.86,237.85,30.20433046]
[1757923960336,1e-08,237.86,237.85,30.91433046]
[1757923960642,1e-08,237.86,237.85,70.76433046]
[1757923960820,1e-08,237.86,237.85,30.20433046]
[1757923961022,1e-08,237.86,237.85,70.74433046]
[1757923961626,1e-08,237.86,237.85,30.20433046]
[1757923961832,1e-08,237.86,237.85,44.72433046]
[1757923962135,1e-08,237.86,237.85,4.20433046]
[1757923962334,1e-08,237.86,237.85,44.72433046]
[1757923962524,1e-08,237.86,237.85,4.91433046]
[1757923962726,1e-08,237.86,237.85,45.43433046]
[1757923963833,1e-08,237.86,237.85,45.41433046]
[1757923965526,1e-08,237.89,237.88,26.0]
[1757923965729,1e-08,237.89,237.88,70.66380023]
[1757923965949,1e-08,237.89,237.88,71.37380023]
[1757923966253,0.1,238.0,237.88,81.88330081]
[1757923966540,0.1,238.0,237.89,0.71]
[1757923966746,0.03,237.91,237.89,0.71]
[1757923967959,0.03,237.91,237.9,70.62344682]
[1757923968442,0.03,237.91,237.9,71.33344682]
[1757923968617,0.03,237.91,237.9,71.31344682]
[1757923969357,0.03,237.91,237.9,72.99755098]
[1757923969853,0.03,237.91,237.9,31.88755098]
[1757923970054,0.03,237.91,237.9,72.26755098]
[1757923970228,0.03,237.91,237.9,72.97755098]
[1757923970429,0.03,237.91,237.9,72.26755098]
[1757923970748,0.03,237.91,237.9,71.29344682]
[1757923971322,0.03,237.91,237.9,30.91344682]
[1757923971836,0.03,237.91,237.9,71.25344682]
[1757923972046,0.03,237.91,237.9,30.20344682]
[1757923972226,0.03,237.91,237.9,70.54344682]
[1757923973461,0.03,237.91,237.9,44.52344682]
[1757923973665,0.03,237.91,237.9,30.20344682]
[1757923973832,0.72,237.91,237.9,44.52344682]
[1757923974343,0.03,237.91,237.9,44.52344682]
[1757923974737,0.72,237.91,237.9,44.50344682]
[1757923975129,0.03,237.91,237.9,44.50344682]
[1757923975842,0.72,237.91,237.88,10.50950058]
[1757923976034,0.69,237.9,237.89,40.28]
[1757923976843,0.03,237.91,237.89,40.28]
[1757923977447,0.03,237.91,237.89,66.28]
[1757923977959,0.03,237.91,237.9,4.20344682]
[1757923979233,0.7,237.91,237.9,4.20344682]
[1757923979460,0.03,237.91,237.9,44.42344682]
[1757923981540,0.03,237.91,237.9,4.20344682]
[1757923982071,0.03,237.91,237.9,44.38344682]
[1757923983278,0.03,237.91,237.9,45.07344682]
[1757923983569,0.03,237.91,237.9,44.38344682]
[1757923983974,0.03,237.91,237.9,30.20344682]
[1757923984142,0.03,237.91,237.9,70.34344682]
[1757923984461,14.29559401,237.91,237.85,12.63397276]
[1757923984660,13.59559401,237.9,237.86,44.3241537]
[1757923984869,14.26559401,237.9,237.86,54.83430251]
[1757923985168,0.67,237.89,237.86,14.71430251]
[1757923985358,0.67,237.88,237.85,4.20420497]
[1757923985560,13.59559401,237.86,237.85,4.20420497]
[1757923985875,13.59559401,237.86,237.83,40.12]
[1757923985876,14.26559401,237.86,237.83,44.3045993]
[1757923986048,0.67,237.85,237.83,54.81630934]
[1757923986362,0.03,237.91,237.83,44.3045993]
[1757923986664,0.67,237.84,237.83,44.3045993]
[1757923987159,13.59559401,237.87,237.83,54.81630934]
[1757923987366,13.59559401,237.85,237.83,54.81630934]
[1757923987554,14.26559401,237.85,237.83,54.81630934]
[1757923987752,13.59559401,237.87,237.83,54.81630934]
[1757923987953,0.67,237.86,237.83,54.81630934]
[1757923988166,0.67,237.85,237.83,54.81630934]
[1757923988349,0.67,237.84,237.83,54.81630934]
[1757923988972,14.26559401,237.84,237.83,4.2045993]
[1757923989160,13.59559401,237.83,237.81,4.26501953]
[1757923989468,0.03,237.91,237.81,4.2650347]
[1757923989772,13.59559401,237.85,237.82,40.06]
[1757923990073,0.72,237.84,237.82,40.06]
[1757923990475,14.31559401,237.84,237.83,4.20468401]
[1757923991548,13.59559401,237.83,237.81,0.06]
[1757923991752,13.59559401,237.83,237.82,40.08]
[1757923991965,0.72,237.83,237.82,0.06]
[1757923992179,0.72,237.83,237.81,0.06]
[1757923992460,0.72,237.83,237.79,0.06]
[1757923992461,13.59559401,237.82,237.79,0.06]
[1757923992771,13.59559401,237.8,237.71,10.51670398]
[1757923992986,13.59559401,237.8,237.7,4.20698359]
[1757923993279,13.59559401,237.78,237.7,4.20698359]
[1757923993470,13.59559401,237.76,237.7,4.20698359]
[1757923993676,13.59559401,237.74,237.7,4.20698359]
[1757923993874,0.72,237.73,237.7,14.72444257]
[1757923994059,13.59559401,237.71,237.7,4.20698359]
[1757923994377,14.31559401,237.71,237.7,4.20698359]
[1757923995153,14.31559401,237.71,237.64,12.63827143]
[1757923995471,13.59559401,237.69,237.64,39.98]
[1757923995649,13.59559401,237.67,237.59,14.73125973]
[1757923995845,13.59559401,237.67,237.6,39.96]
[1757923996063,13.59559401,237.65,237.6,52.86926317]
[1757923996257,14.31559401,237.65,237.6,52.86926317]
[1757923996857,13.59559401,237.68,237.61,0.66]
[1757923997275,13.59559401,237.68,237.62,14.72939987]
[1757923997853,0.72,237.75,237.65,26.0]
[1757923998057,13.59559401,237.74,237.66,39.92]
[1757923998980,13.59559401,237.77,237.69,26.0]
[1757923999177,13.59559401,237.77,237.71,14.72382314]
[1757923999549,3.6,237.78,237.74,26.0]
[1757923999749,0.72,237.81,237.74,66.56]
[1757923999977,13.59559401,237.8,237.74,66.56]
[1757924000356,13.59559401,237.78,237.71,35.7578562]
[1757924000676,14.31559401,237.78,237.72,39.88]
[1757924001075,13.59559401,237.76,237.71,14.72382314]
[1757924001281,13.59559401,237.76,237.71,39.88]
[1757924001454,0.72,237.76,237.71,39.88]
[1757924001659,13.59559401,237.83,237.68,14.72568158]
[1757924001660,0.72,237.75,237.68,14.72568158]
[1757924001855,13.59559401,237.74,237.69,39.86]
[1757924002077,14.31559401,237.74,237.69,39.86]
[1757924002283,13.59559401,237.82,237.69,39.86]
[1757924002479,13.59559401,237.72,237.69,39.86]
[1757924002781,0.72,237.71,237.68,4.20733759]
[1757924002967,13.59559401,237.7,237.68,4.20733759]
[1757924003652,17.80160345,237.76,237.66,4.20768206]
[1757924003853,13.59559401,237.68,237.66,4.20768206]
[1757924004093,13.59559401,237.69,237.66,14.72691121]
[1757924004460,13.59559401,237.7,237.66,14.72691121]
[1757924004659,0.72,237.69,237.66,14.72691121]
[1757924005184,13.59559401,237.68,237.66,14.72691121]
[1757924005387,13.59559401,237.68,237.66,10.51922915]
[1757924005589,14.31559401,237.68,237.64,4.20804578]
[1757924005753,13.59559401,237.73,237.64,4.20804578]
[1757924005958,13.59559401,237.7,237.64,14.72816023]
[1757924006189,13.59559401,237.68,237.64,14.72816023]
[1757924006365,13.59559401,237.66,237.64,4.20804578]
[1757924006563,0.72,237.65,237.63,4.20810044]
[1757924006883,0.72,237.64,237.63,4.20810044]
[1757924007180,14.31559401,237.64,237.63,4.20810044]
[1757924007392,13.59559401,237.63,237.61,14.72995323]
[1757924007559,13.59559401,237.61,237.55,2.8166]
[1757924007883,13.59559401,237.61,237.55,30.18571107]
[1757924008097,0.72,237.61,237.55,17.55022665]
[1757924008959,13.59559401,237.58,237.55,17.55022665]
[1757924009159,0.72,237.57,237.55,17.55022665]
[1757924009492,13.59559401,237.56,237.55,7.02612647]
[1757924009789,14.31559401,237.56,237.55,7.02612647]
[1757924009966,14.31559401,237.56,237.55,2.8166]
[1757924012472,13.59559401,237.58,237.56,4.20946287]
[1757924012675,14.31559401,237.57,237.56,4.20946287]
[1757924012888,14.31559401,237.57,237.55,2.8166]
[1757924012889,13.59559401,237.56,237.55,2.8166]
[1757924013087,14.31559401,237.56,237.55,2.8166]
[1757924013989,13.59559401,237.56,237.55,2.8166]
[1757924014188,16.99559401,237.56,237.55,2.8166]
[1757924015493,0.72,237.67,237.56,14.73312005]
[1757924015802,0.72,237.71,237.59,26.0]
[1757924016088,0.72,237.71,237.6,0.66]
[1757924016990,0.72,237.71,237.61,14.73001978]
[1757924017171,0.72,237.75,237.62,0.66]
[1757924017375,13.59559401,237.7,237.62,0.66]
[1757924017778,13.59559401,237.7,237.61,35.77290518]
[1757924019387,18.04543061,237.81,237.62,0.7]
[1757924019388,13.59559401,237.72,237.62,0.7]
[1757924019783,13.59559401,237.7,237.62,0.7]
[1757924019988,13.59559401,237.7,237.61,35.77290518]
[1757924020182,13.59559401,237.7,237.61,14.73001978]
[1757924021094,13.59559401,237.7,237.61,15.43001978]
[1757924021474,14.25559401,237.74,237.62,0.7]
[1757924021666,14.25559401,237.74,237.64,26.0]
[1757924021871,13.59559401,237.72,237.62,0.7]
[1757924022495,13.59559401,237.7,237.61,14.73001978]